Cogmind - Beta 12 @@@ ROGUE MODE // 2023.03.29 @ 07:32:46 Player: deadnoob Result: Destroyed by G-34 Mercenary with Small Laser Performance ------------- Evolutions (0) 0 Regions Visited (1) 200 Robots Destroyed (9) 45 Value Destroyed (141) 141 Prototype IDs (0) 0 Alien Tech Used (0) 0 Bonus (0) 0 TOTAL SCORE: 386 Bonus ------- None Cogmind --------- Core Integrity 0/250 Matter 300/300 Energy 124/125 System Corruption 0% Temperature Cool (6) Movement Core (50) Location -10/Materials Parts ------- > --- POWER (1) -------- Light Ion Engine > --- PROPULSION (2) --- Light Treads Light Treads > --- UTILITY (2) ------ (None) > --- WEAPON (2) ------- (None) > --- INVENTORY (5) ---- Ion Engine Improved Treads Improved Treads Particle Gun Assault Rifle Peak State ------------ > --- POWER ------------ Light Ion Engine > --- PROPULSION ------- Aluminum Leg Aluminum Leg > --- UTILITY ---------- Small Storage Unit Seismic Detector > --- WEAPON ----------- Small Laser Light Assault Rifle > --- INVENTORY -------- Ion Engine Light Treads Light Treads Compact Wheel Compact Wheel [Rating: 7] Favorites ----------- Power Light Ion Engine Engine Light Ion Engine Propulsion Aluminum Leg Treads Light Treads Leg Aluminum Leg Utility Small Storage Unit Device Seismic Detector Storage Small Storage Unit Weapon Light Assault Rifle Energy Gun Small Laser Ballistic Gun Light Assault Rifle Build | -11 -10 ------- Run | Jun Mat Slots Evolved . | . . Power . | . . Propulsion . | . . Utility . | . . Weapon . | . . Parts Attached 6 | 2 4 Power 1 | . 1 Engine 1 | . 1 Core . | . . Reactor . | . . Propulsion 2 | . 2 Treads 2 | . 2 Leg . | . . Wheel . | . . Hover . | . . Flight . | . . Utility 1 | 1 . Device 1 | 1 . Storage . | . . Processor . | . . Hackware . | . . Protection . | . . Artifact . | . . Weapon 2 | 1 1 Energy Gun 1 | . 1 Energy Cannon . | . . Ballistic Gun 1 | 1 . Ballistic Cannon . | . . Launcher . | . . Special Weapon . | . . Impact Weapon . | . . Slashing Weapon . | . . Piercing Weapon . | . . Special Melee Weapon . | . . Unidentified Prototypes . | . . Parts Lost 3 | . 3 Power . | . . Propulsion 1 | . 1 Utility 1 | . 1 Weapon 1 | . 1 Highest Loss Streak 3 | . 3 To Critical Strikes . | . . Average Slot Usage (%) 73 | . 73 Engine 14 | . 14 Treads 16 | . 16 Leg 10 | . 10 Device 3 | . 3 Storage 9 | . 9 Energy Gun 8 | . 8 Ballistic Gun 9 | . 9 Naked Turns . | . . Heaviest Build 12 | 11 12 Greatest Support 40 | 20 40 Greatest Overweight (x) 1 | . 1 Average Overweight (x) . | . . Largest Inventory Capacity 8 | 8 8 Average Capacity 7 | 8 7 Most Carried 6 | 6 5 Average Carried 4 | 5 4 Final Capacity 8 | 8 5 Final Carried 5 | 5 5 Class Distribution -------------------- 100% | Mutant Dominant Class ---------------- Mutant | -10/Materials Resources | -11 -10 ----------- Run | Jun Mat Matter Collected 288 | 235 53 Remotely . | . . Salvage Created 262 | 94 168 Parts 19 | 7 12 Haulers Intercepted . | . . Recyclers Shooed 1 | 1 . Parts Field Recycled . | . . Retrieved Matter . | . . Parts Self-Destructed . | . . Prevented . | . . Kills | -11 -10 ------- Run | Jun Mat Combat Hostiles Destroyed 6 | . 6 Guns 6 | . 6 Classes Destroyed 4 | 2 2 Tunneler 2 | 2 . Recycler 1 | 1 . Swarmer 4 | . 4 Grunt 2 | . 2 Best Kill Streak 3 | 2 3 Combat Bots Only 3 | . 3 Max Kills in Single Turn 1 | 1 1 Gunslinging . | . . Exploded . | . . Melee . | . . Uniques/NPCs Destroyed . | . . Combat | -11 -10 -------- Run | Jun Mat Damage Taken 641 | . 641 Core 252 | . 252 Absorbed by Shields . | . . Core Remaining (%) 100 | 100 . Volleys Fired 51 | 15 36 Largest 2 | 2 2 Hottest 60 | 60 60 Shots Fired 88 | 29 59 Gun 88 | 29 59 Cannon . | . . Launcher . | . . Special . | . . Kinetic 51 | 15 36 Thermal 37 | 14 23 Explosive . | . . Electromagnetic . | . . Robot Hit Streak 8 | 4 8 Robot Miss Streak 3 | 3 3 Penetration Max . | . . Secondary Targets 1 | . 1 Max Gunslinging Chain 1 | . 1 Shots Hit Robots 56 | 16 40 Core Hits 21 | 6 15 Critical Kills . | . . Critical Parts Destroyed . | . . Critical Strikes . | . . Melee Attacks . | . . Impact . | . . Slashing . | . . Piercing . | . . Sneak Attacks . | . . Combat Hostiles . | . . Follow-up Attacks . | . . Damage Inflicted 560 | 152 408 Guns 543 | 152 391 Cannons . | . . Explosions . | . . Melee . | . . Ramming 17 | . 17 Kinetic 314 | 85 229 Thermal 229 | 67 162 Explosive . | . . Electromagnetic . | . . Impact . | . . Slashing . | . . Piercing . | . . Highest Corruption . | . . Average Corruption . | . . Corruption Purged . | . . Corruption Blocked . | . . Overload Shots . | . . Overflow Damage . | . . Projectiles . | . . Explosions . | . . Melee . | . . Knockbacks 1 | . 1 Impact 1 | . 1 Kinetic . | . . Secondary . | . . Self-Inflicted Damage . | . . Shots . | . . Rammed 1 | . 1 Targets Rammed 9 | . 9 Kicked 8 | . 8 Crushed . | . . Highest Temperature 215 | 40 215 Average Temperature 53 | 19 67 Received Heat Transfer 285 | . 285 Effects 1 | . 1 Interference 1 | . 1 Siege Activations . | . . Robots Corrupted . | . . Combat Hostiles . | . . Parts Fried . | . . Impact Corruptions . | . . Robots Melted . | . . Combat Hostiles . | . . Parts Melted . | . . Heat Transferred 500 | 150 350 Parts Sabotaged . | . . Parts Stolen . | . . Parts Stripped . | . . Power Chain Reactions . | . . Missiles Intercepted . | . . Alert | -11 -10 ------- Run | Jun Mat Peak Influence 348 | 15 348 Initial 9 | . 9 Average 139 | 8 167 Maximum Alert Level 1 | . 1 Low Security (%) 69 | 100 62 Level 1 30 | . 37 Level 2 . | . . Level 3 . | . . Level 4 . | . . Level 5 . | . . High Security . | . . Max Security . | . . Squads Dispatched 4 | . 4 Investigation 2 | . 2 Extermination . | . . Reinforcement 2 | . 2 Assault . | . . Garrison . | . . Intercept . | . . Searches Triggered . | . . Construction Impeded . | . . Haulers Reinforced . | . . Active Scanning Responses . | . . Cargo Convoy Interrupts . | . . Stealth | -11 -10 --------- Run | Jun Mat Distress Signals 1 | . 1 Communications Jammed . | . . Distress Signals . | . . Times Spotted 19 | . 19 Peak Tracking Total 5 | . 5 Tactical Retreats 4 | . 4 Traps | -11 -10 ------- Run | Jun Mat Traps Triggered . | . . Indirectly . | . . Trap Hack Attempts . | . . Triggered . | . . Disarmed . | . . Reprogrammed . | . . Reused . | . . Traps Extracted . | . . Installed . | . . Triggered . | . . Machines | -11 -10 ---------- Run | Jun Mat Machines Disabled . | . . Max in Single Turn . | . . Machines Repaired . | . . Machines Sabotaged . | . . Overloaded Fab Kills . | . . Hacking | -11 -10 --------- Run | Jun Mat Machines Accessed 5 | . 5 Terminals 3 | . 3 Fabricators . | . . Repair Stations . | . . Recycling Units 2 | . 2 Scanalyzers . | . . Garrison Access . | . . Total Hacks 13 | . 13 Successful 6 | . 6 Failed 7 | . 7 Catastrophic . | . . Database Lockouts . | . . Manual 13 | . 13 Terminals 10 | . 10 Fabricators . | . . Repair Stations . | . . Recycling Units 3 | . 3 Scanalyzers . | . . Garrison Access . | . . Terminal Hacks 4 | . 4 Robot Schematic 2 | . 2 Robot Analysis 2 | . 2 Fabricator Hacks . | . . Repair Station Hacks . | . . Recycling Unit Hacks . | . . Scanalyzer . | . . Garrison Access Hacks . | . . Unauthorized Hacks 2 | . 2 Terminals . | . . Fabricators . | . . Repair Stations . | . . Recycling Units 2 | . 2 Tunnel 2 | . 2 Scanalyzers . | . . Garrison Access . | . . Data Cores Recovered . | . . Used . | . . Hacking Detections 3 | . 3 Full Trace Events . | . . Feedback Events . | . . Feedback Blocked . | . . Robot Schematics Acquired 2 | . 2 Robots Built . | . . Authchips . | . . Time . | . . Total Robot Build Rating . | . . Part Schematics Acquired . | . . Parts Built . | . . Authchips . | . . Time . | . . Total Part Build Rating . | . . Parts Repaired . | . . Time . | . . Parts Recycled . | . . Recycled Matter . | . . Retrieved Matter . | . . Retrieved Components . | . . Parts Scanalyzed . | . . Part Schematics Acquired . | . . Parts Damaged . | . . Bothacking | -11 -10 ------------ Run | Jun Mat Used RIF Installer . | . . Robots Hacked . | . . Non-combat . | . . Combat . | . . Robot Hacks Applied . | . . Relay Couplers Released . | . . Fabnet Peak Effective % . | . . Robots Rewired . | . . Allies Hacked . | . . Hacks Repelled . | . . Allies | -11 -10 -------- Run | Jun Mat Total Allies . | . . Largest Group . | . . Highest-Rated Group . | . . Highest-Rated Ally . | . . Total Orders . | . . Ally Attacks . | . . Total Damage . | . . Kills . | . . Allies Corrupted . | . . Allies Melted . | . . Intel | -11 -10 ------- Run | Jun Mat Robot Analysis Total 2 | . 2 Derelict Logs Recovered . | . . Drone Launches . | . . Drone Recoveries . | . . Exploration | -11 -10 ------------- Run | Jun Mat Turns Passed 473 | 85 388 Spaces Moved 356 | 34 322 Core 211 | . 211 Treads 63 | . 63 Legs 82 | 34 48 Wheels . | . . Hover . | . . Flight . | . . Fastest Speed 50 | 120 50 Average Speed 85 | 120 82 Slowest Speed 190 | 120 190 Overloaded Moves . | . . Propulsion Burnouts . | . . Robots Hopped . | . . Cave-ins Triggered . | . . Exploration Rate (%) 28 | 3 54 Regions Visited 1 Branch Regions . Pre-discovered Areas 2 | . 2 Known Exits Taken . | . . Unknown Exits Taken 1 | 1 . Scrap Searched . | . . Spaces Dug . | . . Terrain Destroyed . | . . Melee . | . . Projectile . | . . AOE . | . . Terrain Rammed . | . . Walls Destroyed . | . . Machines Disabled . | . . Actions | -11 -10 --------- Run | Jun Mat Total 447 | 52 395 Wait 10 | . 10 Move 355 | 33 322 Hop . | . . Pick Up 4 | . 4 Fast Attach 4 | 2 2 Attach 2 | . 2 Detach 3 | . 3 Swap . | . . Drop 9 | 2 7 Fire 51 | 15 36 Melee . | . . Ram . | . . Kick 8 | . 8 Crush 1 | . 1 Escape Stasis . | . . Rewire . | . . Trap . | . . Miscellaneous . | . . Route ------- -11/Junkyard -10/Materials (discovered 1 exit: [*Min]) History --------- Turn | Location | Event 2 | -11/Junkyard | Discovered new exit (range 3) 86 | -11/Junkyard | Entered Materials 217 | -10/Materials | Core integrity fell below 50% 233 | -10/Materials | Core integrity fell below 20% 245 | -10/Materials | Lost 3 parts (1n1u1w) 308 | -10/Materials | Build established: Mutant 376 | -10/Materials | Discovered new exit (range 11) 474 | -10/Materials | Destroyed by G-34 Mercenary with Small Laser Last Messages --------------- 00415_ Connecting with Terminal... >>Schematic(M-13 Machinist) Downloading schematic... M-13 Machinist Tier: 1 Schematic downloaded. 00422_ Connecting with Terminal... >>Schematic(O-16 Technician) Downloading schematic... O-16 Technician Tier: 1 Schematic downloaded. 00430_ Connecting with Terminal... 00442_ Acquired 10 matter. 00455_ Connecting with Recycling Unit... >>Force(Tunnel) DISCOVERED[-8/Mines] 00455_ ALERT: Suspicious activity at Recycling Unit M002. Dispatching Investigation squad. 00464_ Slammed into G-34 Mercenary. Map ----- +----------------------------------------------------+ | ???????????????????????????????# ""??????? | | ???????????????????????????????# """"??? ?? | | ???????????????????????????????# """"? ? | | ???????????????????? #######/### """"" ? | | ??????????????????? """ T | | ??????????????????? " | | ?????????????????? T # | | ?????????????????? """ # | | ?????????????????????????# """"" # | | ?????????????????????????## """ """"" # | | ??????????????????????????# """ """"" # | | ??????????????????????????# """ """ # | | ??????????????????????????+ # | | ??????????????????????????# # | | ??????????????????????????### ######## | | ????????????????????????????# # ??# | | ????????????????????????????# # # """ | | ????????????????????????????# # """ + "Y" | | ????????????????????????????# # """ # # | | ????????????????????????????# #= ""??# # | | ????????????????????????????# # ????# # | | ????????????????????????????# #??????# #####+## | | ????????????????????????????# #??????# # T | | ????????????????????????????# #??????# # | | ????????????????############# ######## %+ | | ????????????????# @ g %% % %# | | ????????????????+ % # """ | | ????????????????# %%% %# """"" | | ????????????????### ##############+### # """"" | | ??????????????????#???????# % ## # """"" | | ??????????????????????????# !!!## # """ | | ??????????????????????????# """ !!!## ######## | | ??????????????????????????# """ !! ## #??????? | | ??????????????????????????# """ ## #??????? | | ??????????????????????????# ## #??????? | | ??????????????????????????# ## #??????? | | ??????????????????????????# ## #??????? | | ?????????????????????????#####+####### #??????? | | ?????????????????????????# T #????## ##?????? | | ?????????????????????????# ###### #?????? | | ?????????????????????????# " # #?????? | | ?????????????????????????#""" + #?????? | | ?????????????????????????#""" # #?????? | | ?????????????????????????#""" # #### #?????? | | ?????????????????????????# "" #+##### ##?????? | | ?????????????????????????#""" # """ # #??????? | | ?????????????????????????#"" # "Y" + #??????? | | ?????????????????????????#"" # # #??????? | | ?????????????????????????? " #""" # #??????? | | ?????????????????????????# #""" #####??????? | +----------------------------------------------------+ Best States ------------- Heat Dissipation 25 Energy Generation 10 Energy Capacity 125 Matter Stores 300 Matter Capacity 300 Sight Range 16 Terrain Scan Density 10 Evasion (%) 55 Recoil Reduction 2 Item Schematics ----------------- None Robot Schematics ------------------ M-13 Machinist | -10/Materials | Hacked O-16 Technician | -10/Materials | Hacked Fabricated ------------ Nothing Alien Tech Used ----------------- None Achievements -------------- None Challenges ------------ None Game ------ Seed TerrainNodeShotgun Manual? 0 Play Time 00:08:56 Cumulative 205.8 hours Start 2023.03.29 @ 07:27:49 End 2023.03.29 @ 07:32:46 Sessions 1 Manual Loads 0 Difficulty Rogue Special Mode None Game No. 287 Rogue 287 Adventurer 0 Explorer 0 Win Type - Total 7 Types 6/0/0/1/0/0/0/0/0 Lore% 82 Gallery% 85 Achievement% 68 Wizard Run 0 Options --------- ASCII 0 Keyboard 0 Movement Numpad Keybinds 0 Fullscreen 2 Font 18/SmallcapsGlow Map View 76x50 Tactical HUD 1 Map Filters NONE Filters NONE Steam 1 RUN: a04f5560-a373-420e-b919-12f69892e67d